fUSD/lending_fUSD_20260519
["ID","MTS","AMOUNT","RATE_DAILY","PERIOD"]
[422613752,1779155432000,-4224.81679811,0.00013598,2]
[422613745,1779155432000,-500.0,0.00013598,2]
[422613749,1779155432000,-4224.81679811,0.00013598,2]
[422613748,1779155432000,-4224.81679811,0.00013598,2]
[422613758,1779155432000,-4224.81679811,0.00013598,2]
[422613751,1779155432000,-4224.81679811,0.00013598,2]
[422613754,1779155432000,-4224.81679811,0.00013598,2]
[422613747,1779155432000,-500.0,0.00013598,2]
[422613759,1779155432000,-4224.81679811,0.00013598,2]
[422613771,1779155432000,-4224.81679811,0.00013598,2]
[422613743,1779155432000,-500.0,0.00013598,2]
[422613770,1779155432000,-4224.81679811,0.00013598,2]
[422613760,1779155432000,-4224.81679811,0.00013598,2]
[422613761,1779155432000,-4224.81679811,0.00013598,2]
[422613756,1779155432000,-4224.81679811,0.00013598,2]
[422613739,1779155432000,-500.0,0.00013598,2]
[422613729,1779155432000,-500.0,0.00013598,2]
[422613741,1779155432000,-500.0,0.00013598,2]
[422613700,1779155432000,-500.0,0.00013598,2]
[422613703,1779155432000,-500.0,0.00013598,2]
[422613707,1779155432000,-500.0,0.00013598,2]
[422613711,1779155432000,-500.0,0.00013598,2]
[422613715,1779155432000,-500.0,0.00013598,2]
[422613709,1779155432000,-500.0,0.00013598,2]
[422613705,1779155432000,-500.0,0.00013598,2]
[422613722,1779155432000,-500.0,0.00013598,2]
[422613720,1779155432000,-500.0,0.00013598,2]
[422613718,1779155432000,-500.0,0.00013598,2]
[422613725,1779155432000,-500.0,0.00013598,2]
[422613723,1779155432000,-500.0,0.00013598,2]
[422613713,1779155432000,-500.0,0.00013598,2]
[422613724,1779155432000,-500.0,0.00013598,2]
[422613726,1779155432000,-500.0,0.00013598,2]
[422613727,1779155432000,-500.0,0.00013598,2]
[422613769,1779155432000,-4224.81679811,0.00013598,2]
[422613735,1779155432000,-500.0,0.00013598,2]
[422613731,1779155432000,-500.0,0.00013598,2]
[422613744,1779155432000,-500.0,0.00013598,2]
[422613742,1779155432000,-500.0,0.00013598,2]
[422613737,1779155432000,-500.0,0.00013598,2]
[422613762,1779155432000,-4224.81679811,0.00013598,2]
[422613740,1779155432000,-500.0,0.00013598,2]
[422613763,1779155432000,-4224.81679811,0.00013598,2]
[422613795,1779155432000,-4051.12988529,0.00013598,2]
[422613794,1779155432000,-4051.12988529,0.00013598,2]
[422613797,1779155432000,-4051.12988526,0.00013598,2]
[422613793,1779155432000,-4051.12988529,0.00013598,2]
[422613792,1779155432000,-4051.12988529,0.00013598,2]
[422613809,1779155432000,-68104.19761024,0.00013604,2]
[422613799,1779155432000,-500.0,0.00013603,2]
[422613802,1779155432000,-253.60318825,0.00013603,2]
[422613800,1779155432000,-500.0,0.00013603,2]
[422613796,1779155432000,-4051.12988529,0.00013598,2]
[422613798,1779155432000,-150.0,0.00013598,2]
[422613804,1779155432000,-500.0,0.00013603,2]
[422613807,1779155432000,-150.0,0.00013603,2]
[422613803,1779155432000,-619.17606403,0.00013603,2]
[422613805,1779155432000,-150.0,0.00013603,2]
[422613806,1779155432000,-300.0,0.00013603,2]
[422613808,1779155432000,-505090.47589201,0.00013604,2]
[422613810,1779155432000,-52662.07688648,0.00013604,2]
[422613811,1779155432000,-17663.36267198,0.00013604,2]
[422613812,1779155432000,-1450.04770829,0.00013604,2]
[422613801,1779155432000,-478.88494462,0.00013603,2]
[422613813,1779155432000,-2033.70262742,0.00013604,2]
[422613790,1779155432000,-4051.12988529,0.00013598,2]
[422613791,1779155432000,-4051.12988529,0.00013598,2]
[422613764,1779155432000,-4224.81679811,0.00013598,2]
[422613767,1779155432000,-4224.81679811,0.00013598,2]
[422613766,1779155432000,-4224.81679811,0.00013598,2]
[422613765,1779155432000,-4224.81679811,0.00013598,2]
[422613781,1779155432000,-4051.12988529,0.00013598,2]
[422613782,1779155432000,-4051.12988529,0.00013598,2]
[422613783,1779155432000,-4051.12988529,0.00013598,2]
[422613789,1779155432000,-4051.12988529,0.00013598,2]
[422613773,1779155432000,-4224.81679811,0.00013598,2]
[422613772,1779155432000,-4224.81679811,0.00013598,2]
[422613784,1779155432000,-4051.12988529,0.00013598,2]
[422613774,1779155432000,-4224.81679811,0.00013598,2]
[422613779,1779155432000,-4224.81679811,0.00013598,2]
[422613776,1779155432000,-4224.81679811,0.00013598,2]
[422613788,1779155432000,-4051.12988529,0.00013598,2]
[422613786,1779155432000,-4051.12988529,0.00013598,2]
[422613785,1779155432000,-4051.12988529,0.00013598,2]
[422613787,1779155432000,-4051.12988529,0.00013598,2]
[422613780,1779155432000,-4051.12988529,0.00013598,2]
[422613777,1779155432000,-4224.81679811,0.00013598,2]
[422613778,1779155432000,-4224.81679811,0.00013598,2]
[422613775,1779155432000,-4224.81679811,0.00013598,2]
[422613768,1779155432000,-4224.81679811,0.00013598,2]
[422613814,1779155433000,-38313.9338102,0.00013604,2]
[422613822,1779155437000,-636.36151961,0.00013604,2]
[422613821,1779155437000,-1057.2863623,0.00013604,2]
[422613819,1779155437000,-8460.0,0.00013604,2]
[422613820,1779155437000,-213177.21941814,0.00013604,2]
[422613949,1779155446000,-769.13994,0.00013604,2]
[422613951,1779155446000,-3463.96540754,0.00013604,2]
[422613950,1779155446000,-804.35,0.00013604,2]
[422614020,1779155468000,-3319.24272479,0.00013575,2]
[422614021,1779155480000,-5000.01,0.00013604,2]
[422614026,1779155639000,4349.0,0.00030136,120]
[422614029,1779155781000,391.84,0.00030137,120]
[422614044,1779156175000,3979.41038095,0.000295,120]
[422614049,1779156540000,1000.0,0.00030136,120]
[422614077,1779156632000,-556.41,0.00012735,2]
[422614080,1779156632000,-200.0,0.00012819,2]
[422614079,1779156632000,-202.3,0.00012786,2]
[422614078,1779156632000,-166.71,0.00012754,2]
[422614081,1779156632000,-433.0,0.00012871,2]
[422614082,1779156632000,-9082.45068888,0.00012871,2]
[422614083,1779156632000,-614.01,0.00012912,2]
[422614085,1779156632000,-150.0,0.00012985,2]
[422614084,1779156632000,-2351.0,0.00012946,2]
[422614089,1779156632000,-5412.79929364,0.0001305,2]
[422614087,1779156632000,-150.0,0.00012985,2]
[422614086,1779156632000,-150.0,0.00012985,2]
[422614088,1779156632000,-1554.36675008,0.00013,2]
[422614090,1779156632000,-9082.45068888,0.00013058,2]
[422614092,1779156632000,-9082.45068888,0.00013244,2]
[422614094,1779156632000,-9082.45068888,0.00013431,2]
[422614095,1779156632000,-152.10400648,0.00013488,2]
[422614104,1779156632000,-3768.9505889,0.00013559,2]
[422614100,1779156632000,-3768.9505889,0.00013503,2]
[422614099,1779156632000,-175.49898531,0.00013503,2]
[422614093,1779156632000,-166.3,0.00013318,2]
[422614103,1779156632000,-614.01,0.00013558,2]
[422614091,1779156632000,-614.01,0.00013235,2]
[422614076,1779156632000,-9082.45068888,0.00012684,2]
[422614072,1779156632000,-164.96,0.00012411,2]
[422614074,1779156632000,-250.0,0.00012593,2]
[422614101,1779156632000,-5000.0,0.00013503,2]
[422614055,1779156632000,-452.14346737,0.000107,2]
[422614051,1779156632000,-150.0,0.00010699,2]
[422614054,1779156632000,-300.0,0.00010699,2]
[422614052,1779156632000,-364.62729366,0.00010699,2]
[422614053,1779156632000,-835.37270634,0.00010699,2]
[422614056,1779156632000,-3922.37240693,0.000107,2]
[422614058,1779156632000,-150.0,0.000107,2]
[422614069,1779156632000,-150.0,0.00012256,2]
[422614059,1779156632000,-150.0,0.000107,2]
[422614071,1779156632000,-107527.52,0.00012377,2]
[422614057,1779156632000,-70251.49456097,0.000107,2]
[422614060,1779156632000,-150.0,0.000107,2]
[422614062,1779156632000,-255.0,0.00011737,2]
[422614063,1779156632000,-250.0,0.00011769,2]
[422614064,1779156632000,-250.0,0.00011769,2]
[422614067,1779156632000,-2000.0,0.00012226,2]
[422614066,1779156632000,-1680.0,0.00011769,2]
[422614065,1779156632000,-250.0,0.00011769,2]
[422614070,1779156632000,-9082.45068897,0.00012311,2]
[422614075,1779156632000,-166.3,0.00012623,2]
[422614073,1779156632000,-9082.45068888,0.00012498,2]
[422614061,1779156632000,-172.57,0.00011235,2]
[422614102,1779156632000,-2000.0,0.00013504,2]
[422614098,1779156632000,-155.48159707,0.00013488,2]
[422614097,1779156632000,-150.0,0.00013488,2]
[422614130,1779156632000,-179.21597341,0.00013604,2]
[422614129,1779156632000,-1465.993,0.00013604,2]
[422614135,1779156632000,-500.0,0.00013698,2]
[422614132,1779156632000,-402.44586272,0.00013621,2]
[422614134,1779156632000,-367.66726638,0.00013686,2]
[422614131,1779156632000,-9082.45068888,0.00013618,2]
[422614133,1779156632000,-2198.84079542,0.00013654,2]
[422614136,1779156632000,-500.0,0.00013698,2]
[422614137,1779156632000,-539.82,0.00013698,2]
[422614140,1779156632000,-166.66,0.00013699,2]
[422614142,1779156632000,-404.08232307,0.00013699,2]
[422614143,1779156632000,-179.70859436,0.00013711,2]
[422614150,1779156632000,-539.82,0.0001372,2]
[422614144,1779156632000,-500.0,0.0001372,2]
[422614148,1779156632000,-539.82,0.0001372,2]
[422614147,1779156632000,-517.71281634,0.0001372,2]
[422614141,1779156632000,-200.0,0.00013699,2]
[422614146,1779156632000,-500.0,0.0001372,2]
[422614145,1779156632000,-518.50412553,0.0001372,2]
[422614152,1779156632000,-539.82,0.0001372,2]
[422614151,1779156632000,-539.82,0.0001372,2]
[422614153,1779156632000,-539.82,0.0001372,2]
[422614096,1779156632000,-150.0,0.00013488,2]
[422614127,1779156632000,-239.86334568,0.00013604,2]
[422614139,1779156632000,-2500.0,0.00013699,2]
[422614149,1779156632000,-539.82,0.0001372,2]
[422614128,1779156632000,-151.67104361,0.00013604,2]
[422614115,1779156632000,-500.0,0.00013602,2]
[422614112,1779156632000,-500.0,0.00013602,2]
[422614105,1779156632000,-299.57177799,0.00013601,2]
[422614154,1779156632000,-539.82,0.0001372,2]
[422614116,1779156632000,-500.0,0.00013602,2]
[422614110,1779156632000,-211.78389701,0.00013602,2]
[422614113,1779156632000,-500.0,0.00013602,2]
[422614109,1779156632000,-500.0,0.00013602,2]
[422614108,1779156632000,-500.0,0.00013602,2]
[422614106,1779156632000,-500.0,0.00013602,2]
[422614114,1779156632000,-287.78290383,0.00013602,2]
[422614107,1779156632000,-348.72875261,0.00013602,2]
[422614111,1779156632000,-164.79279766,0.00013602,2]
[422614120,1779156632000,-212940.3022296,0.00013603,2]
[422614119,1779156632000,-333.5687713,0.00013603,2]
[422614117,1779156632000,-150.0,0.00013602,2]
[422614122,1779156632000,-70629.18131687,0.00013603,2]
[422614121,1779156632000,-4261.1268009,0.00013603,2]
[422614125,1779156632000,-224788.16317084,0.00013603,2]
[422614124,1779156632000,-116707.52426198,0.00013603,2]
[422614123,1779156632000,-106518.65995251,0.00013603,2]
[422614118,1779156632000,-188.52694987,0.00013602,2]
[422614126,1779156632000,-7857.679829,0.00013603,2]
[422614138,1779156632000,-509.12282674,0.00013698,2]
[422614158,1779156633000,-78497.10306996,0.00013721,2]
[422614157,1779156633000,-539.82,0.0001372,2]
[422614156,1779156633000,-539.82,0.0001372,2]
[422614159,1779156633000,-1254.41808677,0.00013721,2]
[422614155,1779156633000,-539.82,0.0001372,2]
[422614194,1779156638000,-668.03,0.00013721,2]
[422614196,1779156638000,-199.8861214,0.00013721,2]
[422614199,1779156638000,-150.0,0.00013795,2]
[422614203,1779156638000,-215.11887611,0.00013868,2]
[422614193,1779156638000,-678.46611811,0.00013721,2]
[422614195,1779156638000,-2308746.75336041,0.00013721,2]
[422614202,1779156638000,-166.66,0.00013836,2]
[422614198,1779156638000,-167.4,0.00013786,2]
[422614200,1779156638000,-9082.45068888,0.00013804,2]
[422614197,1779156638000,-2000.0,0.00013754,2]
[422614204,1779156638000,-160.0,0.00013868,2]
[422614201,1779156638000,-1311.67597532,0.00013821,2]
[422614219,1779156638000,-539.82,0.00014017,2]
[422614217,1779156638000,-539.82,0.00014017,2]
[422614216,1779156638000,-1320.6697525,0.00014017,5]
[422614205,1779156638000,-614.01,0.00013881,2]
[422614218,1779156638000,-539.82,0.00014017,2]
[422614213,1779156638000,-9082.45068888,0.00013991,2]
[422614215,1779156638000,-166.3,0.00014012,2]
[422614209,1779156638000,-166.66,0.00013973,2]
[422614211,1779156638000,-179.70859436,0.00013981,2]
[422614214,1779156638000,-250.0,0.00014,2]
[422614207,1779156638000,-10000.0,0.00013918,2]
[422614222,1779156638000,-539.82,0.00014017,2]
[422614220,1779156638000,-539.82,0.00014017,2]
[422614206,1779156638000,-500.0,0.0001389,2]
[422614192,1779156638000,-3835.10622231,0.00013721,2]
[422614167,1779156638000,-500.0,0.00012945,2]
[422614187,1779156638000,-500.0,0.00012945,2]
[422614163,1779156638000,-500.0,0.00012945,2]
[422614223,1779156638000,-151.0,0.00014018,2]
[422614166,1779156638000,-500.0,0.00012945,2]
[422614164,1779156638000,-500.0,0.00012945,2]
[422614165,1779156638000,-500.0,0.00012945,2]
[422614168,1779156638000,-500.0,0.00012945,2]
[422614170,1779156638000,-500.0,0.00012945,2]
[422614180,1779156638000,-500.0,0.00012945,2]
[422614171,1779156638000,-500.0,0.00012945,2]
[422614169,1779156638000,-500.0,0.00012945,2]
[422614181,1779156638000,-500.0,0.00012945,2]
[422614172,1779156638000,-500.0,0.00012945,2]
[422614173,1779156638000,-500.0,0.00012945,2]
[422614175,1779156638000,-500.0,0.00012945,2]
[422614176,1779156638000,-500.0,0.00012945,2]
[422614179,1779156638000,-500.0,0.00012945,2]
[422614174,1779156638000,-500.0,0.00012945,2]
[422614177,1779156638000,-500.0,0.00012945,2]
[422614178,1779156638000,-500.0,0.00012945,2]
[422614184,1779156638000,-500.0,0.00012945,2]
[422614182,1779156638000,-500.0,0.00012945,2]
[422614185,1779156638000,-500.0,0.00012945,2]
[422614186,1779156638000,-166.51582531,0.00012945,2]
[422614190,1779156638000,-93150.58885075,0.00013721,2]
[422614191,1779156638000,-5865.0,0.00013721,2]
[422614183,1779156638000,-500.0,0.00012945,2]
[422614188,1779156638000,-3768.9505889,0.00013616,2]
[422614189,1779156638000,-7304.53429169,0.00013721,2]
[422614225,1779156638000,-151.0,0.00014018,2]
[422614281,1779156638000,-166.66,0.00014384,2]
[422614231,1779156638000,-221.933279,0.00014018,2]
[422614295,1779156638000,-500.0,0.00014463,7]
[422614296,1779156638000,-500.0,0.00014463,7]
[422614306,1779156638000,-443.531192,0.00014705,2]
[422614227,1779156638000,-151.0,0.00014018,2]
[422614304,1779156638000,-262.389949,0.00014559,2]
[422614308,1779156638000,-166.3,0.00014707,2]
[422614300,1779156638000,-161.53708453,0.00014463,7]
[422614298,1779156638000,-500.0,0.00014463,7]
[422614318,1779156638000,-539.82,0.00014882,2]
[422614316,1779156638000,-500.0,0.00014856,2]
[422614314,1779156638000,-1006.97,0.000148,2]
[422614315,1779156638000,-1038.63,0.000148,2]
[422614292,1779156638000,-292.47642032,0.00014463,7]
[422614312,1779156638000,-500.0,0.00014767,2]
[422614310,1779156638000,-430.848687,0.00014731,2]
[422614313,1779156638000,-32335.1196,0.00014783,2]
[422614319,1779156638000,-539.82,0.00014882,2]
[422614325,1779156638000,-500.0,0.00014884,2]
[422614323,1779156638000,-540.0467401,0.00014882,2]
[422614327,1779156638000,-500.0,0.00014884,4]
[422614324,1779156638000,-17184.9374285,0.00014883,2]
[422614326,1779156638000,-500.0,0.00014884,3]
[422614321,1779156638000,-539.82,0.00014882,2]
[422614322,1779156638000,-539.82,0.00014882,2]
[422614328,1779156638000,-500.0,0.00014884,5]
[422614320,1779156638000,-539.82,0.00014882,2]
[422614317,1779156638000,-152.0,0.00014869,2]
[422614278,1779156638000,-539.82,0.0001436,2]
[422614302,1779156638000,-276.901524,0.00014504,2]
[422614286,1779156638000,-500.0,0.00014463,7]
[422614221,1779156638000,-539.82,0.00014017,2]
[422614233,1779156638000,-500.0,0.00014018,2]
[422614237,1779156638000,-208.544728,0.00014018,2]
[422614235,1779156638000,-500.0,0.00014018,2]
[422614229,1779156638000,-277.26262,0.00014018,2]
[422614241,1779156638000,-229.040718,0.00014018,2]
[422614239,1779156638000,-229.040718,0.00014018,2]
[422614288,1779156638000,-500.0,0.00014463,7]
[422614253,1779156638000,-1500000.0,0.00014018,2]
[422614256,1779156638000,-166.66,0.0001411,2]
[422614245,1779156638000,-229.040718,0.00014018,2]
[422614259,1779156638000,-736.0,0.00014123,2]
[422614249,1779156638000,-154.634062,0.00014018,2]
[422614243,1779156638000,-229.040718,0.00014018,2]
[422614261,1779156638000,-500.0,0.00014164,2]
[422614247,1779156638000,-151.0,0.00014018,2]
[422614274,1779156638000,-163.44,0.00014256,2]
[422614270,1779156638000,-3292.0,0.0001424,2]
[422614276,1779156638000,-367.66726637,0.00014293,2]
[422614272,1779156638000,-166.66,0.00014247,2]
[422614283,1779156638000,-202.3,0.00014385,2]
[422614285,1779156638000,-500.0,0.00014411,2]
[422614264,1779156638000,-614.01,0.00014204,2]
[422614268,1779156638000,-152.0,0.0001422,7]
[422614266,1779156638000,-152.0,0.0001422,7]
[422614251,1779156638000,-151.0,0.00014018,2]
[422614290,1779156638000,-500.0,0.00014463,7]
[422614335,1779156639000,-157.50595746,0.00014986,2]
[422614339,1779156639000,-500.0,0.00014999,2]
[422614336,1779156639000,-152.04041521,0.00014986,2]
[422614333,1779156639000,-303.05356947,0.000149,2]
[422614331,1779156639000,-524.75866545,0.00014884,8]
[422614334,1779156639000,-367.66726637,0.000149,2]
[422614342,1779156639000,-500.0,0.00014999,5]
[422614332,1779156639000,-1168.08,0.000149,2]
[422614329,1779156639000,-500.0,0.00014884,6]
[422614330,1779156639000,-500.0,0.00014884,7]
[422614343,1779156639000,-500.0,0.00014999,6]
[422614340,1779156639000,-500.0,0.00014999,3]
[422614337,1779156639000,-179.70859436,0.0001499,2]
[422614338,1779156639000,-151.0,0.00014997,2]
[422614348,1779156639000,-500.0,0.00014999,11]
[422614351,1779156639000,-642.38175541,0.00014999,14]
[422614347,1779156639000,-500.0,0.00014999,10]
[422614346,1779156639000,-500.0,0.00014999,9]
[422614350,1779156639000,-500.0,0.00014999,13]
[422614349,1779156639000,-500.0,0.00014999,12]
[422614352,1779156639000,-1781626.41749387,0.00015,2]
[422614344,1779156639000,-500.0,0.00014999,7]
[422614345,1779156639000,-500.0,0.00014999,8]
[422614341,1779156639000,-500.0,0.00014999,4]
[422614353,1779156639000,-325.09476266,0.00015,2]
[422614363,1779156640000,-3029.00915916,0.00015,2]
[422614358,1779156640000,-233.20047497,0.00013721,2]
[422614360,1779156640000,-932.10435306,0.00015,2]
[422614359,1779156640000,-151.0,0.00014884,2]
[422614361,1779156640000,-7897.11066809,0.00015,2]
[422614362,1779156640000,-208.5339928,0.00014563,2]
[422614364,1779156640000,-403.4324899,0.00015,2]
[422614370,1779156640000,-8830.31031964,0.00015,2]
[422614366,1779156640000,-3348.54514912,0.00013672,2]
[422614367,1779156640000,-174262.5715843,0.00015,2]
[422614371,1779156640000,-8947.21879473,0.00015,2]
[422614369,1779156640000,-684.905344,0.00015,2]
[422614372,1779156640000,-8943.78386462,0.00015,2]
[422614373,1779156640000,-9077.54866152,0.00015,2]
[422614368,1779156640000,-1427.67023228,0.00015,2]
[422614365,1779156640000,-420.40543978,0.00013672,2]
[422614382,1779156643000,-360.54661202,0.00015,2]
[422614384,1779156643000,-2853.48445354,0.00015,2]
[422614383,1779156643000,-1366.2,0.00015,2]
[422614392,1779156646000,-2916.77304325,0.00015,2]
[422614390,1779156646000,-760.21692186,0.00015,2]
[422614391,1779156646000,-447.68811279,0.00015,2]
[422614389,1779156646000,-5212.88821805,0.00015,2]
[422614388,1779156646000,-2609.23755045,0.00013728,2]
[422614386,1779156646000,-1159.71303845,0.00013728,2]
[422614402,1779157276000,-150.0,0.00012836,2]
[422614407,1779157343000,184.4153896,0.0001,2]
[422614406,1779157343000,1.0,0.0001,2]
[422614408,1779157379000,1559.67063021,0.00030136,120]
[422614409,1779157470000,1015.50935479,0.00030136,120]
[422614410,1779157495000,151.72,0.00012754,2]
[422614411,1779157607000,26.18007515,0.00012775,2]
[422614414,1779157742000,1000.0,0.00030135,120]
[422614430,1779157833000,-167.84,0.0001323,2]
[422614417,1779157833000,-313.00338255,0.00012634,2]
[422614419,1779157833000,-244.46,0.0001266,2]
[422614420,1779157833000,-601.57452484,0.00012674,2]
[422614418,1779157833000,-186.99661745,0.00012634,2]
[422614421,1779157833000,-1398.42547516,0.00012674,2]
[422614422,1779157833000,-597.58,0.00012721,2]
[422614423,1779157833000,-250.0,0.00012737,2]
[422614425,1779157833000,-1200.0,0.00012764,2]
[422614432,1779157833000,-300.0,0.00013393,2]
[422614428,1779157833000,-140.52992485,0.00012775,2]
[422614429,1779157833000,-250.0,0.00012849,2]
[422614424,1779157833000,-164.04,0.00012752,2]
[422614426,1779157833000,-2653.27545788,0.00012765,2]
[422614436,1779157833000,-5000.0,0.00013568,2]
[422614439,1779157833000,-310.8,0.00013568,2]
[422614437,1779157833000,-15501.68224415,0.00013568,2]
[422614435,1779157833000,-150.0,0.00013567,2]
[422614438,1779157833000,-648.73496734,0.00013568,2]
[422614433,1779157833000,-2614.64,0.00013394,2]
[422614431,1779157833000,-200.0,0.0001337,2]
[422614427,1779157833000,-3250.94454212,0.00012765,2]
[422614434,1779157833000,-10799.82,0.00013403,2]
[422614479,1779157838000,-500.0,0.00013667,2]
[422614480,1779157838000,-500.0,0.00013667,2]
[422614482,1779157838000,-500.0,0.00013667,2]
[422614483,1779157838000,-500.0,0.00013667,2]
[422614485,1779157838000,-500.0,0.00013667,2]
[422614484,1779157838000,-390.70889646,0.00013667,2]
[422614489,1779157838000,-500.0,0.00013667,2]
[422614481,1779157838000,-500.0,0.00013667,2]
[422614487,1779157838000,-500.0,0.00013667,2]
[422614488,1779157838000,-500.0,0.00013667,2]
[422614478,1779157838000,-500.0,0.00013667,2]
[422614490,1779157838000,-500.0,0.00013667,2]
[422614498,1779157838000,-500.0,0.00013667,2]
[422614499,1779157838000,-300.0,0.00013667,2]
[422614486,1779157838000,-500.0,0.00013667,2]
[422614477,1779157838000,-500.0,0.00013667,2]
[422614475,1779157838000,-500.0,0.00013667,2]
[422614473,1779157838000,-500.0,0.00013667,2]
[422614492,1779157838000,-500.0,0.00013667,2]
[422614460,1779157838000,-9033.92128851,0.00013568,2]
[422614462,1779157838000,-1429.773,0.00013599,2]
[422614463,1779157838000,-171.331,0.00013599,2]
[422614464,1779157838000,-500.0,0.00013602,2]
[422614461,1779157838000,-2567.95914665,0.00013584,2]
[422614466,1779157838000,-1750.61400333,0.00013611,2]
[422614465,1779157838000,-499.89,0.00013602,3]
[422614467,1779157838000,-10000.0,0.00013621,2]
[422614469,1779157838000,-356.13037889,0.00013667,2]
[422614471,1779157838000,-500.0,0.00013667,2]
[422614468,1779157838000,-500.0,0.00013667,2]
[422614472,1779157838000,-500.0,0.00013667,2]
[422614474,1779157838000,-500.0,0.00013667,2]
[422614470,1779157838000,-500.0,0.00013667,2]
[422614476,1779157838000,-500.0,0.00013667,2]
[422614493,1779157838000,-500.0,0.00013667,2]
[422614497,1779157838000,-500.0,0.00013667,2]
[422614494,1779157838000,-500.0,0.00013667,2]
[422614535,1779157838000,-250.0,0.00014,2]
[422614537,1779157838000,-1680.0,0.00014041,2]
[422614539,1779157838000,-168.02,0.00014041,2]
[422614527,1779157838000,-303.43922099,0.00013926,2]
[422614523,1779157838000,-300.0,0.00013926,2]
[422614541,1779157838000,-2614.64,0.00014064,2]
[422614528,1779157838000,-167.84,0.00013958,2]
[422614521,1779157838000,-2500.0,0.00013926,2]
[422614524,1779157838000,-300.0,0.00013926,2]
[422614545,1779157838000,-157.17,0.00014095,2]
[422614547,1779157838000,-168.02,0.00014212,2]
[422614553,1779157838000,-155.60792497,0.00014261,2]
[422614555,1779157838000,-19499.68183232,0.00014287,2]
[422614549,1779157838000,-856.25985621,0.00014246,2]
[422614491,1779157838000,-500.0,0.00013667,2]
[422614551,1779157838000,-2000.0,0.00014258,2]
[422614543,1779157838000,-195.42,0.00014067,2]
[422614533,1779157838000,-250.0,0.00013993,2]
[422614505,1779157838000,-1219014.46532894,0.00013668,2]
[422614517,1779157838000,-2614.64,0.00013729,2]
[422614531,1779157838000,-2500.0,0.00013993,2]
[422614500,1779157838000,-500.0,0.00013667,2]
[422614501,1779157838000,-297.32382328,0.00013667,2]
[422614502,1779157838000,-122804.4318281,0.00013668,2]
[422614511,1779157838000,-215.15951567,0.00013721,2]
[422614513,1779157838000,-160.0,0.00013721,2]
[422614503,1779157838000,-523.34407638,0.00013668,2]
[422614515,1779157838000,-208.58623393,0.00013721,2]
[422614507,1779157838000,-168.02,0.00013699,2]
[422614506,1779157838000,-18347.09889038,0.00013684,2]
[422614495,1779157838000,-244.11012683,0.00013667,2]
[422614509,1779157838000,-200.0,0.00013699,2]
[422614519,1779157838000,-168.02,0.0001387,2]
[422614504,1779157838000,-426.61846658,0.00013668,2]
[422614496,1779157838000,-500.0,0.00013667,2]
[422614557,1779157839000,-500.0,0.00014301,2]
[422614559,1779157839000,-505964.32869046,0.00014308,2]
[422614563,1779157839000,-1117.40781505,0.00014308,2]
[422614951,1779157843000,-1243.73843092,0.00013584,2]
[422614974,1779157846000,-1010.43472839,0.00014308,2]
[422614973,1779157846000,-4596.37201738,0.00013584,2]
[422614972,1779157846000,-1973.05,0.00013584,2]
[422614971,1779157846000,-399.0671464,0.00013584,2]
[422614980,1779157849000,-389.22027436,0.00014308,2]
[422614981,1779157849000,-2012.45218495,0.00014308,2]
[422614979,1779157849000,-323.311332,0.00014308,2]
[422614984,1779157969000,500.0,0.00030137,120]
[422614985,1779158241000,607.87198799,0.00030137,120]
[422614986,1779158375000,2345.6,0.00030136,120]
[422614987,1779158707000,1108.0,0.0003,120]
[422614989,1779158730000,254.88,6.565e-05,2]
[422614990,1779158743000,500.0,0.00029452,120]
[422614991,1779158941000,1000.0,0.00030136,120]